bitfinex-derivatives/quotes_ETHF0:USTF0_20250101
["timestamp","ask_amount","ask_price","bid_price","bid_amount"]
[1735725945763,5.9066247,3339.8,3339.7,2.57971275]
[1735725946057,1.63088,3340.1,3339.7,6.98749987]
[1735725946257,3.5078,3339.8,3339.7,3.30819712]
[1735725947561,3.5078,3339.8,3338.7,0.30009]
[1735725947562,0.30008,3339.0,3338.7,0.30009]
[1735725947758,4.28650275,3339.4,3338.9,1.07870275]
[1735725947959,0.30007,3339.0,3338.9,1.07870275]
[1735725948264,3.2078,3339.4,3338.6,14.0672908]
[1735725948462,0.30008,3338.9,3338.6,14.0672908]
[1735725948766,3.2078,3339.4,3338.6,13.7671808]
[1735725948964,0.30009,3338.8,3338.6,13.7671808]
[1735725949264,0.30008,3338.9,3338.6,6.98741621]
[1735725950453,3.53732261,3338.7,3338.6,5.48731621]
[1735725950657,3.83742261,3338.7,3338.4,0.30012]
[1735725950857,3.53732261,3338.7,3338.5,0.30011]
[1735725951660,0.75839,3338.8,3338.5,2.57962621]
[1735725951661,3.53732261,3338.6,3338.5,2.57962621]
[1735725953259,3.53732261,3338.7,3338.6,0.30011]
[1735725954661,3.53732261,3338.8,3338.6,0.30011]
[1735725955758,2.3574273,3338.7,3338.6,0.30011]
[1735725961966,2.3574273,3338.8,3338.7,0.3001]
[1735725963770,2.3574273,3338.8,3338.5,2.27951621]
[1735725963971,0.30009,3338.8,3338.6,0.3001]
[1735725964162,0.45,3338.7,3338.6,0.3001]
[1735725964562,0.45,3338.7,3338.4,2.27951621]
[1735725964766,0.7501,3338.7,3338.4,2.27951621]
[1735725964966,0.7501,3338.7,3338.5,0.30011]
[1735725965572,2.3574273,3338.6,3338.5,0.30011]
[1735725965769,2.3574273,3338.6,3338.3,0.4514]
[1735725966068,0.30013,3338.3,3337.9,0.30017]
[1735725966276,0.30016,3338.1,3337.9,0.30017]
[1735725966675,0.30016,3338.1,3337.8,2.57968621]
[1735725966975,1.3205,3338.2,3337.8,2.27951621]
[1735725967169,1.3205,3338.2,3338.0,0.30016]
[1735725967468,0.4448,3338.2,3338.1,2.57966621]
[1735725968675,3.2078,3338.5,3338.4,0.30012]
[1735725970776,3.50792,3338.5,3338.4,0.30012]
[1735725971074,3.2078,3338.5,3338.4,0.30012]
[1735725971570,0.30012,3338.4,3338.2,0.75104]
[1735725971769,0.30012,3338.4,3338.3,0.30013]
[1735725972967,3.2078,3338.5,3338.4,0.30012]
[1735725973273,3.2078,3338.5,3338.4,2.57963621]
[1735725974974,2.6575273,3338.7,3338.5,0.30011]
[1735725975883,2.6575273,3338.7,3338.6,0.30011]
[1735725975884,2.3574273,3338.7,3338.6,0.30011]
[1735725977174,5.8652973,3339.0,3338.9,0.30008]
[1735725977571,5.5652273,3339.0,3338.9,0.30008]
[1735725978176,3.2078,3339.0,3338.9,0.30008]
[1735725978378,3.2078,3339.0,3338.9,0.75388]
[1735725981382,3.2078,3339.0,3338.9,0.30008]
[1735725982280,3.50787,3339.0,3338.8,1.18778]
[1735725982884,3.2078,3339.0,3338.9,0.30008]
[1735725985085,3.6331,3339.0,3338.9,0.30008]
[1735725985985,3.93317,3339.0,3338.9,0.30008]
[1735725986488,0.30008,3338.9,3338.8,0.4603]
[1735725986676,0.30008,3338.9,3338.7,0.30009]
[1735725986878,5.9905273,3339.0,3338.7,0.30009]
[1735725986879,0.30009,3338.8,3338.7,0.30009]
[1735725987083,5.9905273,3339.0,3338.4,3.47951621]
[1735725987381,0.3001,3338.7,3338.5,0.30012]
[1735725987883,0.89,3339.1,3338.4,3.94541621]
[1735725987884,0.83248936,3338.8,3338.7,0.3001]
[1735725988086,4.01651763,3339.1,3339.0,0.30007]
[1735725988287,2.27131763,3339.1,3339.0,5.78738621]
[1735725989489,5.9066247,3339.3,3339.2,0.30005]
[1735725989690,1.6584,3339.8,3339.4,0.30003]
[1735725989989,1.6584,3339.8,3339.2,1.2]
[1735725990489,1.6584,3339.8,3339.4,0.30003]
[1735725991384,0.30001,3339.7,3339.4,0.30003]
[1735725991586,1.3584,3339.8,3339.2,1.2]
[1735725991891,1.65841,3339.8,3339.5,0.30003]
[1735725992288,0.30002,3339.6,3339.3,0.30004]
[1735725992485,1.3584,3339.8,3339.2,1.2]
[1735725992486,0.30001,3339.7,3339.4,0.30003]
[1735725992786,3.2078,3339.7,3339.1,0.30006]
[1735725992985,3.2078,3339.7,3338.9,1.2]
[1735725993180,3.2078,3339.7,3338.7,7.07986459]
[1735725993181,3.2078,3339.3,3338.7,7.07986459]
[1735725993385,0.30009,3338.8,3338.7,7.07986459]
[1735725993795,0.30009,3338.8,3338.6,3.50791]
[1735725993990,0.4394,3338.7,3338.6,3.50791]
[1735725994893,0.8582,3339.2,3339.1,0.30006]
[1735726001496,0.8582,3339.2,3338.6,5.48731621]
[1735726001701,0.30006,3339.1,3338.9,0.30007]
[1735726002002,3.50787,3339.0,3338.8,0.30009]
[1735726002394,0.8582,3339.2,3338.6,3.2078]
[1735726003200,0.30007,3339.0,3338.8,0.30008]
[1735726003598,0.4321,3338.9,3338.8,0.30008]
[1735726005396,0.4321,3338.9,3338.6,3.2078]
[1735726005397,0.3001,3338.7,3338.6,3.2078]
[1735726005604,0.30011,3338.6,3338.4,0.30012]
[1735726005792,0.4446,3338.5,3338.4,0.30012]
[1735726005998,0.4446,3338.5,3338.1,2.73261621]
[1735726006201,0.4321,3338.4,3338.3,0.30012]
[1735726012609,0.4444,3338.8,3338.7,0.3001]
[1735726013007,0.4444,3338.8,3338.1,2.73261621]
[1735726013202,0.4444,3338.8,3338.7,0.3001]
[1735726015312,0.74447,3339.1,3339.0,0.30007]
[1735726015503,1.63017,3339.1,3338.9,0.30008]
[1735726015700,0.30007,3339.0,3338.9,0.30008]
[1735726018113,1.3301,3339.1,3338.5,4.5156]
[1735726018412,1.3301,3339.1,3338.7,0.30009]
[1735726018610,0.30009,3338.8,3338.7,0.30009]
[1735726018807,0.30011,3338.6,3338.5,0.4419]
[1735726019019,0.30013,3338.4,3338.3,0.30013]
[1735726019213,3.2078,3338.4,3338.1,0.434]
[1735726019513,0.30015,3338.1,3337.8,9.44537703]
[1735726020113,0.30015,3338.1,3337.8,9.74555703]
[1735726020511,0.30015,3338.1,3337.8,9.44537703]
[1735726020714,0.30015,3338.1,3337.7,0.73418]
[1735726020715,0.30017,3337.9,3337.7,0.73418]
[1735726021109,0.30016,3338.0,3337.8,0.30018]
[1735726021313,5.0147288,3338.1,3337.8,0.30018]
[1735726021515,5.0147288,3338.1,3337.9,0.30016]
[1735726021714,5.0147288,3338.1,3337.9,2.57967621]
[1735726021915,0.30016,3338.1,3337.9,2.57967621]
[1735726022916,4.7145688,3338.2,3338.1,0.30015]
[1735726023220,4.7145688,3338.2,3337.9,2.27951621]
[1735726023221,4.7145688,3338.3,3338.2,0.30014]
[1735726024707,3.2078,3338.4,3338.3,0.30013]
[1735726024912,3.50792,3338.4,3338.3,0.30013]
[1735726025720,3.50792,3338.4,3337.9,2.27951621]
[1735726025920,3.50792,3338.4,3338.2,0.30014]
[1735726026219,3.50792,3338.4,3338.3,0.4329]
[1735726026414,3.2078,3338.4,3337.5,0.4227]
[1735726026720,0.30017,3338.0,3337.8,0.30017]
[1735726027114,1.3639,3338.3,3337.7,2.27951621]
[1735726027115,0.30018,3337.8,3337.7,2.27951621]
[1735726027811,0.30017,3337.9,3337.7,2.57969621]
[1735726028016,0.9099,3338.3,3337.7,2.27951621]
[1735726028418,0.30018,3337.8,3337.7,2.27951621]
[1735726028819,0.30019,3337.7,3337.5,1.1558]
[1735726029019,0.30019,3337.7,3337.5,0.8556]
[1735726029217,0.30019,3337.7,3337.5,1.1558]
[1735726029413,0.454,3338.2,3337.5,0.8556]
[1735726029624,0.30017,3338.0,3337.9,2.27951621]
[1735726031320,0.9099,3338.3,3337.7,1.2]
[1735726031520,0.30017,3337.9,3337.7,1.50018]
[1735726031822,0.30018,3337.8,3337.7,1.2]
[1735726033422,0.30019,3337.7,3337.5,1.1558]
[1735726033723,0.30019,3337.7,3337.6,2.27951621]
[1735726035223,0.30017,3338.0,3337.8,0.30017]
[1735726036424,0.75684,3338.3,3338.1,0.30015]
[1735726036623,0.30014,3338.3,3337.9,2.27951621]
[1735726036825,0.30014,3338.3,3338.1,0.30014]
[1735726037425,0.30014,3338.3,3338.2,0.30014]
[1735726037621,3.2078,3338.4,3338.1,0.4394]
[1735726037822,3.50793,3338.4,3338.1,0.4394]
[1735726038024,3.2078,3338.4,3338.2,0.30014]
[1735726038223,0.30013,3338.3,3338.2,0.30014]
[1735726040832,0.30014,3338.2,3338.1,0.30015]
[1735726041023,0.30017,3337.9,3337.8,0.74518]
[1735726041329,0.30017,3337.9,3337.8,0.445]
[1735726041823,0.30018,3337.8,3337.7,0.4446]
[1735726043025,5.1610688,3338.1,3337.4,2.57972621]
[1735726043225,5.1610688,3338.1,3337.4,3.03332621]
[1735726043823,0.3002,3337.6,3337.4,3.03332621]
[1735726044223,0.3002,3337.6,3337.4,2.73311621]
[1735726044423,0.3002,3337.6,3337.4,3.03332621]
[1735726044929,0.30018,3337.8,3337.6,0.3002]
[1735726045330,5.1610688,3338.1,3337.6,0.3002]
[1735726045530,0.30019,3337.7,3337.6,0.3002]
[1735726045931,0.30019,3337.7,3337.4,2.73311621]
[1735726046127,0.4465,3338.1,3337.4,3.03332621]
[1735726046332,0.4465,3338.1,3337.4,2.73311621]
[1735726046728,0.3002,3337.6,3337.4,2.57972621]
[1735726046933,0.4643,3337.5,3337.4,2.57972621]
[1735726048331,0.8744,3337.9,3337.4,2.27951621]
[1735726048538,0.30019,3337.7,3337.5,1.2211]
[1735726048836,3.83564566,3337.7,3337.6,0.4469]
[1735726049644,3.83564566,3337.7,3337.6,0.7471]
[1735726049846,0.30019,3337.7,3337.6,0.7471]
[1735726051149,3.53545566,3337.8,3337.7,0.30019]
[1735726051446,3.53545566,3337.8,3337.7,2.57970621]
[1735726052152,3.2078,3338.0,3337.7,2.27951621]
[1735726052348,3.53545566,3338.1,3338.0,0.30016]
[1735726052547,3.53545566,3338.1,3338.0,2.57967621]
[1735726053055,3.53545566,3338.1,3338.0,3.02537621]
[1735726053541,3.83559566,3338.3,3338.0,2.72521621]
[1735726053745,3.83559566,3338.3,3338.2,0.30014]
[1735726054150,3.83559566,3338.3,3338.2,0.72374]
[1735726055646,3.83559566,3338.3,3338.2,0.4236]
[1735726055841,0.30014,3338.2,3338.1,0.30015]
[1735726057152,3.83559566,3338.2,3338.1,0.30015]
[1735726057845,0.30015,3338.1,3338.0,0.74586]
[1735726059153,0.30015,3338.1,3338.0,0.4457]
[1735726059359,0.30016,3338.0,3337.9,1.2]
[1735726059858,0.30017,3337.9,3337.8,3.2078]
[1735726060150,0.72627,3337.9,3337.8,3.2078]
[1735726064359,5.4408388,3337.9,3337.8,3.2078]
[1735726065058,5.4408388,3337.9,3337.6,0.3002]
[1735726065059,5.1406688,3337.9,3337.6,0.3002]
[1735726065259,0.30018,3337.8,3337.5,0.4516]
[1735726065457,0.30018,3337.8,3337.7,0.30019]
[1735726068652,5.0147388,3337.9,3337.8,0.30018]
[1735726069757,4.7145688,3337.9,3337.8,0.30018]
[1735726070467,4.7145688,3337.9,3337.8,0.73618]
[1735726071062,3.54201593,3337.9,3337.8,0.73618]
[1735726072161,3.54201593,3338.0,3337.9,0.30017]
[1735726072358,3.54201593,3338.0,3337.9,2.57968621]
[1735726072758,3.54201593,3338.0,3337.9,3.77968621]
[1735726075463,2.84201593,3338.0,3337.9,3.77968621]
[1735726077266,0.429,3338.5,3338.4,0.30012]
[1735726077468,0.429,3338.5,3338.4,2.57963621]
[1735726078670,5.1435688,3338.5,3338.4,2.57963621]
[1735726078964,5.4436888,3338.5,3338.4,2.27951621]
[1735726079372,1.59582,3338.5,3338.4,2.27951621]
[1735726080666,1.2957,3338.5,3338.1,2.71621621]
[1735726080881,0.30014,3338.3,3338.2,0.30014]
[1735726081467,0.30014,3338.3,3338.1,2.71621621]
[1735726081684,0.30014,3338.3,3338.1,3.01635621]
[1735726082676,0.30014,3338.3,3338.2,0.30014]
[1735726082970,0.30013,3338.4,3338.2,0.30014]
[1735726083866,6.0102688,3338.5,3338.2,0.30014]
[1735726084174,0.30014,3338.3,3338.2,0.30014]
[1735726085575,0.30013,3338.4,3338.2,0.30014]
[1735726086276,6.3103888,3338.5,3338.4,0.30012]
[1735726086969,6.3103888,3338.5,3338.3,0.30013]
[1735726087676,6.0102688,3338.5,3338.3,0.30013]
[1735726087862,0.30012,3338.4,3338.3,0.30013]
[1735726088470,0.30012,3338.4,3338.1,2.71621621]
[1735726088670,0.30012,3338.4,3338.2,0.30014]
[1735726089073,0.30013,3338.3,3338.2,0.30014]
[1735726089271,1.2957,3338.5,3338.1,2.71621621]
[1735726089480,0.30017,3338.0,3337.8,8.19308601]
[1735726089773,0.4415,3337.9,3337.8,8.19308601]
[1735726090665,0.4415,3337.9,3337.8,3.2078]
[1735726090971,0.4415,3337.9,3337.8,3.50798]
[1735726091478,1.2974,3337.9,3337.8,3.50798]
[1735726091872,1.59757,3337.9,3337.8,3.2078]
[1735726095068,1.2974,3337.9,3337.3,6.96463222]
[1735726095273,0.30021,3337.5,3337.3,7.26485222]
[1735726095481,0.4361,3337.4,3337.3,7.26485222]
[1735726096580,0.4361,3337.4,3337.3,8.14485222]
[1735726096777,0.4361,3337.4,3337.3,8.57505222]
[1735726097377,0.4361,3337.4,3337.3,3.88993621]
[1735726101185,0.4361,3337.4,3337.3,3.45973621]
[1735726101482,0.4361,3337.4,3337.0,5.88411601]
[1735726101483,0.4361,3337.4,3337.0,4.68511601]
[1735726101684,1.20663,3337.3,3337.1,0.30024]
[1735726101989,1.20663,3337.3,3337.0,4.98536601]
[1735726101990,0.30024,3337.1,3337.0,4.98536601]
[1735726102283,0.30024,3337.1,3336.9,0.30025]
[1735726102481,0.30024,3337.2,3337.0,0.30025]
[1735726103485,0.9064,3337.3,3336.8,5.91031621]
[1735726103788,0.4361,3337.4,3337.3,0.30022]
[1735726105083,0.4361,3337.4,3337.3,0.76612]
[1735726105580,0.73631,3337.4,3337.3,0.4659]
[1735726105785,0.4361,3337.4,3337.3,0.76612]
[1735726108690,4.7145688,3337.9,3337.3,2.74541621]
[1735726108891,0.72248,3337.8,3337.6,0.30019]
[1735726109091,0.72248,3337.8,3337.3,2.74541621]
[1735726109092,0.4223,3337.8,3337.3,2.74541621]
[1735726109294,0.4223,3337.8,3337.7,0.30019]
[1735726109492,0.72248,3337.8,3337.7,0.30019]
[1735726109989,0.72248,3337.8,3337.3,2.74541621]
[1735726110195,0.72248,3337.8,3337.6,0.30019]
[1735726111389,0.72248,3337.8,3337.7,0.30019]
[1735726111791,0.4223,3337.8,3337.7,0.30019]
[1735726119389,0.72248,3337.8,3337.7,0.30019]
[1735726120286,0.4223,3337.8,3337.7,0.30019]
[1735726120696,0.72248,3337.8,3337.7,0.30019]
[1735726123700,0.4223,3337.8,3337.7,0.30019]
[1735726125496,0.72248,3337.8,3337.7,0.30019]
[1735726125897,0.4223,3337.8,3337.7,0.30019]
[1735726126297,0.72248,3337.8,3337.7,0.30019]
[1735726127694,0.4223,3337.8,3337.7,0.30019]
[1735726128296,0.4223,3337.8,3337.7,1.379909]
[1735726128495,0.72248,3337.8,3337.7,1.379909]
[1735726128897,0.4223,3337.8,3337.7,1.379909]
[1735726129502,0.72248,3337.8,3337.7,1.379909]
[1735726131497,0.4223,3337.8,3337.7,1.379909]
[1735726132805,0.72248,3337.8,3337.7,1.379909]
[1735726133004,0.4223,3337.8,3337.7,1.379909]
[1735726135501,5.4611288,3338.0,3337.9,0.30017]
[1735726135699,4.7145688,3338.0,3337.9,1.379889]
[1735726136508,5.4633188,3338.1,3338.0,0.30016]
[1735726138207,5.1631688,3338.1,3338.0,0.30016]
[1735726139108,4.7145688,3338.1,3338.0,0.30016]
[1735726140309,3.54108861,3338.1,3338.0,0.30016]
[1735726141811,3.54108861,3338.1,3338.0,1.379879]
[1735726142603,3.54108861,3338.2,3338.1,0.30015]
[1735726142803,3.54108861,3338.2,3338.1,1.379869]
[1735726143806,3.54108861,3338.3,3338.2,0.30014]
[1735726144310,3.54108861,3338.3,3338.2,0.73334]
[1735726144809,3.97888861,3338.4,3338.3,0.30013]
[1735726145009,3.97888861,3338.4,3338.3,1.379849]
[1735726146206,3.97888861,3338.4,3338.3,1.079719]
[1735726146207,4.27900861,3338.4,3338.3,1.079719]
[1735726146407,4.27900861,3338.4,3338.3,1.379849]
[1735726147313,0.73792,3338.4,3338.3,1.379849]
[1735726152011,0.73792,3338.4,3338.3,1.079719]
[1735726152212,0.30014,3338.2,3338.1,1.379869]
[1735726153620,0.30014,3338.2,3338.1,0.30015]
[1735726153621,3.83999453,3338.2,3338.1,0.30015]
[1735726153919,3.83999453,3338.2,3338.1,1.079719]
[1735726154719,3.83999453,3338.2,3338.1,1.379869]
[1735726155321,3.53985453,3338.2,3338.1,1.379869]
[1735726157218,3.53985453,3338.3,3338.2,0.30014]
[1735726157418,3.83998453,3338.3,3338.2,0.30014]
[1735726157618,3.53985453,3338.3,3338.2,0.30014]
[1735726159715,3.53985453,3338.3,3338.1,1.079719]
[1735726159920,3.83999453,3338.3,3338.1,1.379869]
[1735726160323,3.53985453,3338.3,3338.1,1.379869]
[1735726160530,0.30014,3338.2,3338.1,1.379869]
[1735726160730,3.53985453,3338.3,3338.1,1.079719]
[1735726160934,3.53985453,3338.3,3338.2,0.30014]
[1735726163530,3.83998453,3338.3,3338.2,0.30014]
[1735726164729,3.83998453,3338.3,3338.1,1.379869]
[1735726165031,3.83998453,3338.3,3338.2,0.30014]
[1735726166129,3.83998453,3338.3,3338.1,1.079719]
[1735726166130,0.30014,3338.2,3338.1,1.079719]
[1735726166334,0.30014,3338.2,3338.1,1.379859]
[1735726167535,3.83999453,3338.3,3338.2,0.30014]
[1735726169131,0.30014,3338.2,3338.1,1.379869]
[1735726170036,0.30014,3338.2,3338.1,1.079719]
[1735726170437,0.30014,3338.2,3337.9,1.079719]
[1735726170634,0.9195,3338.1,3338.0,0.30015]
[1735726171739,1.21965,3338.1,3338.0,0.30015]
[1735726171940,4.76083818,3338.1,3338.0,0.30015]
[1735726172142,0.30017,3337.9,3337.8,3.2078]
[1735726172444,0.30017,3337.9,3337.8,3.50798]
[1735726173042,3.84135818,3337.9,3337.8,3.50798]
[1735726173737,3.54118818,3337.9,3337.8,3.50798]
[1735726174139,5.4773388,3338.0,3337.8,3.50798]
[1735726174345,5.4773388,3338.0,3337.9,1.079719]
[1735726174546,5.4773388,3338.0,3337.9,1.379889]
[1735726175248,0.76277,3338.0,3337.9,1.379889]
[1735726175946,0.76277,3338.0,3337.9,1.079719]
[1735726176740,0.4626,3338.0,3337.7,1.079719]
[1735726176946,0.4626,3338.0,3337.7,1.379899]
[1735726176947,0.30018,3337.8,3337.7,1.379899]
[1735726177644,3.54232461,3337.8,3337.7,1.379899]
[1735726177843,3.84250461,3337.8,3337.7,1.379899]
[1735726178248,3.84250461,3337.8,3337.7,1.079719]
[1735726178546,3.54232461,3337.8,3337.6,0.30019]
[1735726178847,3.54232461,3337.8,3337.5,1.951519]
[1735726179049,3.54232461,3337.8,3337.6,0.3002]
[1735726179351,0.30019,3337.7,3337.6,0.3002]
[1735726180050,4.7145688,3337.8,3337.5,1.951519]
[1735726180248,0.4353,3337.6,3337.5,2.251729]
[1735726180841,0.4353,3337.6,3337.5,1.17201]
[1735726181046,0.4353,3337.6,3337.5,2.251729]
[1735726181647,0.30021,3337.4,3337.3,3.2078]
[1735726181943,0.30021,3337.4,3337.3,4.587739]
[1735726182656,0.30021,3337.4,3337.3,1.079719]
[1735726183350,3.84123548,3337.4,3337.3,1.079719]
[1735726183848,3.54102548,3337.4,3337.1,1.079719]
[1735726184150,0.30023,3337.3,3337.0,1.20715]
[1735726184451,3.54102548,3337.4,3336.9,5.11101601]
[1735726184452,0.30024,3337.1,3336.9,5.11101601]
[1735726184754,0.30024,3337.1,3336.9,0.4259]
[1735726184948,0.30025,3337.0,3336.9,1.079719]
[1735726187749,0.30027,3336.8,3336.7,0.8595]
[1735726187955,0.30027,3336.8,3336.7,1.939219]
[1735726190659,0.30026,3336.9,3336.7,2.239499]
[1735726191456,0.30027,3336.8,3336.7,1.939219]
[1735726192559,0.30027,3336.8,3336.7,0.8595]
[1735726192756,0.30028,3336.7,3336.6,0.4259]
[1735726192957,0.3003,3336.5,3336.4,1.964319]
[1735726193561,0.3003,3336.5,3336.4,0.8846]
[1735726194957,0.30031,3336.3,3336.2,1.079719]
[1735726195156,0.30031,3336.3,3336.2,1.972419]
[1735726195458,0.30031,3336.3,3336.2,0.8927]
[1735726195658,0.30031,3336.3,3336.2,1.972419]
[1735726195863,0.30031,3336.3,3336.2,0.8927]
[1735726196456,5.196519,3336.6,3335.8,1.32083375]
[1735726196657,0.30033,3336.1,3336.0,1.079719]
[1735726197357,0.30035,3335.9,3335.6,1.3124]
[1735726197559,0.30036,3335.8,3335.6,1.3124]
[1735726197750,0.74166,3335.8,3335.6,2.392119]
[1735726199855,0.74166,3335.8,3335.6,1.3124]
[1735726200058,0.74166,3335.8,3335.6,2.392119]
[1735726200958,0.74166,3335.8,3335.6,2.692489]
[1735726201158,3.50813,3336.2,3335.9,0.30034]
[1735726201354,3.50813,3336.2,3336.1,1.079719]
[1735726201559,0.30033,3336.2,3336.1,1.079719]
[1735726202160,0.30033,3336.2,3336.1,1.3373]
[1735726203466,0.30033,3336.2,3336.1,0.4289]
[1735726204861,3.2078,3336.2,3335.8,0.9084]
[1735726205062,0.30035,3335.9,3335.8,0.449]
[1735726206159,0.30036,3335.8,3335.7,3.2078]
[1735726206862,0.30036,3335.8,3335.1,4.5584]
[1735726206863,0.30041,3335.2,3335.1,4.5584]
[1735726207657,0.30041,3335.2,3335.1,4.105]
[1735726207863,0.30041,3335.2,3335.1,3.2078]
[1735726208567,0.8771,3335.6,3335.1,3.50821]
[1735726208568,0.3004,3335.4,3335.1,3.50821]
[1735726208764,0.30041,3335.2,3335.1,3.2078]
[1735726211269,0.8771,3335.6,3335.1,3.2078]
[1735726211467,0.30041,3335.3,3335.2,0.8675]
[1735726211771,0.30041,3335.3,3335.2,1.2915]
[1735726212368,0.3004,3335.4,3335.2,1.2915]
[1735726212564,3.2078,3335.8,3335.4,0.30039]
[1735726213076,0.30039,3335.5,3335.4,0.30039]
[1735726214268,3.2078,3335.8,3335.4,0.30039]
[1735726214872,0.30037,3335.7,3335.5,0.30038]
[1735726215173,0.30038,3335.6,3335.5,0.30038]
[1735726215470,3.2078,3335.8,3335.5,0.30038]
[1735726215667,0.30038,3335.7,3335.5,0.30038]
[1735726215973,0.30037,3335.7,3335.5,0.30038]
[1735726216361,0.4359,3336.0,3335.3,3.48160214]
[1735726216564,0.30035,3336.0,3335.9,0.30035]
[1735726217363,0.30035,3336.0,3335.8,0.30035]
[1735726217568,3.2078,3336.2,3335.5,3.2078]
[1735726217569,3.50813,3336.2,3336.0,0.30033]
[1735726217770,3.50813,3336.2,3336.1,0.8861]
[1735726220768,3.50813,3336.2,3336.1,1.18643]
[1735726221366,3.50813,3336.2,3336.1,0.8861]
[1735726221567,3.50813,3336.2,3336.1,0.4372]
[1735726222268,3.2078,3336.2,3335.9,0.4666]
[1735726222463,0.30033,3336.1,3335.9,0.76694]
[1735726224367,3.2078,3336.2,3335.9,0.4666]
[1735726224574,0.30034,3336.0,3335.9,0.76695]
[1735726224774,0.30034,3336.0,3335.9,0.4666]
[1735726224970,0.30036,3335.8,3335.7,0.4258]
[1735726225371,0.4308,3335.9,3335.6,0.73007]
[1735726225674,0.30037,3335.7,3335.6,0.73007]
[1735726226875,0.30036,3335.8,3335.6,0.73007]
[1735726227175,0.30037,3335.7,3335.6,0.73007]
[1735726227370,0.30037,3335.7,3335.6,0.4297]
[1735726227972,0.30037,3335.7,3335.6,0.73008]
[1735726228170,0.30036,3335.8,3335.7,0.30036]
[1735726229472,0.30037,3335.7,3335.6,1.18767]
[1735726229666,0.30037,3335.7,3335.6,0.8873]
[1735726229868,0.4308,3335.9,3335.5,3.2078]
[1735726230074,0.30038,3335.6,3335.5,3.2078]
[1735726231170,3.2078,3335.6,3335.1,2.5237]
[1735726231375,3.2078,3335.6,3334.9,3.2078]
[1735726231376,0.30043,3335.0,3334.9,3.50823]
[1735726231577,0.30043,3335.0,3334.9,3.2078]
[1735726232474,0.30043,3335.0,3334.9,3.50824]
[1735726232978,0.30041,3335.3,3335.1,0.30042]
[1735726233282,0.30041,3335.2,3335.1,0.30042]
[1735726233973,0.4566,3335.4,3334.9,3.2078]
[1735726234175,0.30042,3335.1,3334.9,3.2078]
[1735726234374,0.30042,3335.1,3334.9,3.50823]
[1735726235178,0.30043,3335.0,3334.9,3.2078]
[1735726239884,5.49140214,3335.0,3334.3,4.68511601]
[1735726240079,3.50828,3334.4,3334.3,4.68511601]
[1735726241888,3.50828,3334.4,3334.2,0.3005]
[1735726242184,3.2078,3334.4,3334.3,0.30049]
[1735726260411,0.3005,3334.2,3334.1,0.9097]
[1735726260607,3.50829,3334.4,3334.3,0.30049]
[1735726260808,3.2078,3334.4,3334.1,0.9097]
[1735726261015,0.3005,3334.3,3334.2,0.3005]
[1735726261209,3.2078,3334.4,3334.1,0.9097]
[1735726261409,0.3005,3334.2,3334.1,0.9097]
[1735726261909,0.3005,3334.2,3334.1,1.21021]
[1735726262110,1.6336,3334.3,3334.1,1.21021]
[1735726262306,1.3331,3334.3,3334.1,0.9097]
[1735726262604,1.3331,3334.3,3334.2,0.3005]
[1735726265422,1.63359,3334.3,3334.2,0.3005]
[1735726266210,1.3331,3334.3,3333.9,0.4347]
[1735726266417,1.3331,3334.3,3333.6,0.911]
[1735726266717,0.30054,3333.8,3333.7,0.30054]
[1735726266915,0.30053,3333.9,3333.8,0.30054]
[1735726267317,0.30053,3334.0,3333.8,0.30054]
[1735726267619,0.30051,3334.1,3333.6,1.3498]
[1735726267821,1.3331,3334.3,3334.1,0.30051]
[1735726268210,0.3005,3334.2,3334.1,0.30051]
[1735726268612,1.6336,3334.3,3334.1,0.3005]
[1735726268915,1.6336,3334.3,3333.8,0.00259369]
[1735726268916,1.3331,3334.3,3333.8,0.00259369]
[1735726269116,0.8988,3334.3,3334.2,0.3005]
[1735726271525,0.30051,3334.2,3334.0,0.30051]
[1735726271721,0.76591,3334.2,3334.1,0.30051]
[1735726272326,0.76591,3334.2,3334.0,0.30052]
[1735726272516,0.30051,3334.1,3334.0,0.30052]
[1735726272721,0.76591,3334.2,3334.1,0.30051]
[1735726272926,0.4654,3334.2,3334.1,0.30051]
[1735726275228,0.7659,3334.2,3334.1,0.30051]
[1735726275823,0.30051,3334.1,3334.0,0.30052]
[1735726276032,0.76591,3334.2,3334.0,0.30052]
[1735726276530,0.76591,3334.2,3333.8,0.00259369]
[1735726276728,0.76591,3334.2,3334.1,0.30051]
[1735726277227,0.76591,3334.2,3333.8,0.00259369]
[1735726277228,4.00434636,3334.2,3333.8,0.00259369]
[1735726278223,4.30485636,3334.2,3333.9,0.30053]
[1735726278424,4.00434636,3334.2,3333.8,0.00259369]
[1735726278726,0.30053,3333.9,3333.8,0.00259369]
[1735726280234,0.76023,3333.9,3333.8,0.00259369]
[1735726283236,4.29917636,3333.9,3333.8,0.00259369]
[1735726283526,3.53894636,3333.9,3333.8,0.30313369]
[1735726284532,3.53894636,3334.0,3333.8,0.00259369]
[1735726284739,3.53894636,3334.0,3333.9,0.73683]
[1735726284924,3.53894636,3334.0,3333.9,1.63483]
[1735726285129,3.53894636,3334.0,3333.9,1.19853]
[1735726285634,3.53894636,3334.0,3333.9,0.73703]
[1735726287233,4.41771,3334.1,3333.9,0.73703]
[1735726287234,9.1322788,3334.1,3333.9,0.73703]
[1735726287941,0.30053,3333.9,3333.8,0.00259369]
[1735726288132,0.30053,3333.9,3333.8,0.30313369]
[1735726288333,8.8317688,3334.1,3333.8,0.00259369]
[1735726288541,3.5441794,3333.9,3333.8,0.30313369]
[1735726289938,3.5441794,3334.0,3333.9,0.30053]
[1735726290240,3.5441794,3334.0,3333.9,3.03453214]
[1735726291041,3.2078,3334.1,3333.9,2.73400214]
[1735726291237,3.2078,3334.1,3334.0,0.30052]
[1735726291538,3.2078,3334.1,3334.0,0.74392]